[Event "Titled Tuesday Blitz May 16 Early 2023"]
[White "Mikhaylova, Irina"]
[Black "Hartikainen, Jarmo"]
[WhiteFideId "4109040"]
[BlackFideId "503134"]
[WhiteElo "1975"]
[BlackElo "2100"]
[Result "1-0"]
[Round "08"]
[TimeControl "180+2"]
[Date "2023.05.16"]
[WhiteClock "0:01:24"]
[BlackClock "0:00:00"]

1. d4 {[%clk 0:03:00]}  Nf6 {[%clk 0:02:57]} 2. Nf3 {[%clk 0:03:01]}  d5 {[%clk 0:02:57]} 3. c4 {[%clk 0:03:01]}  c6 {[%clk 0:02:57]} 4. cxd5 {[%clk 0:03:01]}  cxd5 {[%clk 0:02:57]} 5. Nc3 {[%clk 0:03:02]}  Nc6 {[%clk 0:02:57]} 6. Bf4 {[%clk 0:03:03]}  Bf5 {[%clk 0:02:58]} 7. e3 {[%clk 0:03:03]}  e6 {[%clk 0:02:58]} 8. Qb3 {[%clk 0:03:03]}  Bb4 {[%clk 0:02:40]} 9. Bb5 {[%clk 0:03:03]}  Qa5 {[%clk 0:02:33]} 10. Bxc6+ {[%clk 0:02:58]}  bxc6 {[%clk 0:02:32]} 11. O-O {[%clk 0:02:58]}  O-O {[%clk 0:02:24]} 12. Bc7 {[%clk 0:02:58]}  Qxc7 {[%clk 0:02:18]} 13. Qxb4 {[%clk 0:02:59]}  Rfb8 {[%clk 0:02:01]} 14. Qa3 {[%clk 0:02:59]}  Nd7 {[%clk 0:01:32]} 15. Na4 {[%clk 0:02:53]}  Nb6 {[%clk 0:01:27]} 16. b3 {[%clk 0:02:47]}  Nxa4 {[%clk 0:00:53]} 17. Qxa4 {[%clk 0:02:47]}  f6 {[%clk 0:00:46]} 18. Rfc1 {[%clk 0:02:44]}  Rb6 {[%clk 0:00:45]} 19. Rc5 {[%clk 0:02:43]}  Rc8 {[%clk 0:00:42]} 20. Rac1 {[%clk 0:02:43]}  e5 {[%clk 0:00:36]} 21. h3 {[%clk 0:02:35]}  Be4 {[%clk 0:00:34]} 22. Nd2 {[%clk 0:02:29]}  exd4 {[%clk 0:00:32]} 23. Nxe4 {[%clk 0:02:25]}  dxe4 {[%clk 0:00:30]} 24. Qxd4 {[%clk 0:02:24]}  Qe7 {[%clk 0:00:15]} 25. R5c4 {[%clk 0:01:52]}  f5 {[%clk 0:00:12]} 26. Qc5 {[%clk 0:01:52]}  Qxc5 {[%clk 0:00:11]} 27. Rxc5 {[%clk 0:01:52]}  g6 {[%clk 0:00:12]} 28. g4 {[%clk 0:01:53]}  Kf7 {[%clk 0:00:12]} 29. gxf5 {[%clk 0:01:52]}  gxf5 {[%clk 0:00:12]} 30. Rxf5+ {[%clk 0:01:53]}  Ke6 {[%clk 0:00:12]} 31. Rh5 {[%clk 0:01:51]}  Rc7 {[%clk 0:00:12]} 32. Rc4 {[%clk 0:01:50]}  Rb5 {[%clk 0:00:12]} 33. Rxe4+ {[%clk 0:01:50]}  Kf6 {[%clk 0:00:10]} 34. Rf4+ {[%clk 0:01:39]}  Kg6 {[%clk 0:00:10]} 35. Rhh4 {[%clk 0:01:36]}  Rg5+ {[%clk 0:00:09]} 36. Kh2 {[%clk 0:01:35]}  Rd7 {[%clk 0:00:09]} 37. Rc4 {[%clk 0:01:34]}  Rd6 {[%clk 0:00:09]} 38. Rhg4 {[%clk 0:01:34]}  c5 {[%clk 0:00:09]} 39. Kg3 {[%clk 0:01:34]}  Rxg4+ {[%clk 0:00:09]} 40. hxg4 {[%clk 0:01:34]}  Rd2 {[%clk 0:00:08]} 41. Rxc5 {[%clk 0:01:28]}  Rxa2 {[%clk 0:00:08]} 42. Rc6+ {[%clk 0:01:28]}  Kg7 {[%clk 0:00:08]} 43. Rc7+ {[%clk 0:01:28]}  Kg6 {[%clk 0:00:07]} 44. b4 {[%clk 0:01:29]}  Rb2 {[%clk 0:00:07]} 45. Rxa7 {[%clk 0:01:28]}  Rxb4 {[%clk 0:00:06]} 46. Ra6+ {[%clk 0:01:29]}  Kg7 {[%clk 0:00:06]} 47. f4 {[%clk 0:01:29]}  Rb3 {[%clk 0:00:06]} 48. Kf3 {[%clk 0:01:29]}  Rb1 {[%clk 0:00:07]} 49. g5 {[%clk 0:01:29]}  Rf1+ {[%clk 0:00:07]} 50. Ke4 {[%clk 0:01:29]}  Rg1 {[%clk 0:00:07]} 51. Ra7+ {[%clk 0:01:29]}  Kg6 {[%clk 0:00:08]} 52. Ra6+ {[%clk 0:01:27]}  Kg7 {[%clk 0:00:08]} 53. Kf5 {[%clk 0:01:28]}  Re1 {[%clk 0:00:04]} 54. Re6 {[%clk 0:01:26]}  Re2 {[%clk 0:00:03]} 55. e4 {[%clk 0:01:26]}  Kf8 {[%clk 0:00:00]} 56. Ra6 {[%clk 0:01:24]} 1-0


[Site "https://www.chess.com"]

[Event "Titled Tuesday Blitz May 16 Early 2023"]
[White "Maluco_do_Natal_00"]
[Black "Rodriguez Santiago, Jaime"]
[BlackFideId "3100898"]
[WhiteElo "2029"]
[BlackElo "2025"]
[Result "0-1"]
[Round "08"]
[TimeControl "180+2"]
[Date "2023.05.16"]
[WhiteClock "0:00:00"]
[BlackClock "0:00:44"]

1. e4 {[%clk 0:03:00]}  c6 {[%clk 0:02:59]} 2. d4 {[%clk 0:03:00]}  d5 {[%clk 0:02:59]} 3. Nc3 {[%clk 0:03:00]}  dxe4 {[%clk 0:02:59]} 4. Nxe4 {[%clk 0:03:01]}  Nf6 {[%clk 0:03:00]} 5. Nxf6+ {[%clk 0:03:02]}  exf6 {[%clk 0:03:01]} 6. c3 {[%clk 0:03:02]}  Bd6 {[%clk 0:03:00]} 7. Qc2 {[%clk 0:03:03]}  O-O {[%clk 0:02:59]} 8. Bd3 {[%clk 0:03:03]}  Re8+ {[%clk 0:03:00]} 9. Ne2 {[%clk 0:03:04]}  h5 {[%clk 0:02:59]} 10. Be3 {[%clk 0:03:01]}  h4 {[%clk 0:02:58]} 11. h3 {[%clk 0:03:01]}  Nd7 {[%clk 0:02:57]} 12. O-O {[%clk 0:03:00]}  Nf8 {[%clk 0:02:57]} 13. c4 {[%clk 0:02:39]}  Bc7 {[%clk 0:02:44]} 14. c5 {[%clk 0:02:35]}  Be6 {[%clk 0:02:42]} 15. Rad1 {[%clk 0:02:30]}  Qd7 {[%clk 0:02:41]} 16. Nf4 {[%clk 0:02:27]}  Rad8 {[%clk 0:02:29]} 17. b4 {[%clk 0:02:03]}  Bb8 {[%clk 0:02:21]} 18. Nxe6 {[%clk 0:01:21]}  Nxe6 {[%clk 0:02:18]} 19. Bf5 {[%clk 0:01:19]}  Qc7 {[%clk 0:02:17]} 20. f4 {[%clk 0:01:16]}  Nxc5 {[%clk 0:02:09]} 21. dxc5 {[%clk 0:01:05]}  Rxe3 {[%clk 0:02:07]} 22. Rxd8+ {[%clk 0:00:55]}  Qxd8 {[%clk 0:02:08]} 23. Rd1 {[%clk 0:00:42]}  Qe8 {[%clk 0:02:03]} 24. Qf2 {[%clk 0:00:30]}  g6 {[%clk 0:01:43]} 25. Bg4 {[%clk 0:00:27]}  f5 {[%clk 0:01:41]} 26. Qxh4 {[%clk 0:00:19]}  Bc7 {[%clk 0:01:31]} 27. Bf3 {[%clk 0:00:17]}  Kg7 {[%clk 0:01:18]} 28. a4 {[%clk 0:00:13]}  Rb3 {[%clk 0:01:17]} 29. b5 {[%clk 0:00:13]}  Qe3+ {[%clk 0:01:16]} 30. Qf2 {[%clk 0:00:09]}  Bxf4 {[%clk 0:01:11]} 31. bxc6 {[%clk 0:00:06]}  bxc6 {[%clk 0:01:07]} 32. Qxe3 {[%clk 0:00:04]}  Bxe3+ {[%clk 0:01:07]} 33. Kf1 {[%clk 0:00:05]}  Bxc5 {[%clk 0:01:05]} 34. Bxc6 {[%clk 0:00:05]}  a5 {[%clk 0:00:57]} 35. Rd7 {[%clk 0:00:03]}  Rb2 {[%clk 0:00:46]} 36. Bd5 {[%clk 0:00:02]}  Kh6 {[%clk 0:00:45]} 37. Rxf7 {[%clk 0:00:00]}  Kg5 {[%clk 0:00:44]} 0-1


[Site "https://www.chess.com"]

[Event "Titled Tuesday Blitz May 16 Early 2023"]
[White "Afanasieva, Alexandra"]
[Black "stratacticos"]
[WhiteFideId "34126926"]
[WhiteElo "1745"]
[BlackElo "1895"]
[Result "0-1"]
[Round "08"]
[TimeControl "180+2"]
[Date "2023.05.16"]
[WhiteClock "0:00:14"]
[BlackClock "0:00:50"]

1. e4 {[%clk 0:03:00]}  c5 {[%clk 0:02:59]} 2. d4 {[%clk 0:03:00]}  cxd4 {[%clk 0:02:58]} 3. c3 {[%clk 0:03:00]}  dxc3 {[%clk 0:02:58]} 4. Nxc3 {[%clk 0:03:01]}  Nc6 {[%clk 0:02:56]} 5. Bc4 {[%clk 0:03:01]}  e6 {[%clk 0:02:56]} 6. Nf3 {[%clk 0:03:00]}  a6 {[%clk 0:02:55]} 7. Bg5 {[%clk 0:03:00]}  Be7 {[%clk 0:02:54]} 8. Bxe7 {[%clk 0:02:57]}  Ngxe7 {[%clk 0:02:53]} 9. h4 {[%clk 0:02:50]}  O-O {[%clk 0:02:51]} 10. h5 {[%clk 0:02:50]}  h6 {[%clk 0:02:51]} 11. Qc2 {[%clk 0:02:49]}  d5 {[%clk 0:02:46]} 12. exd5 {[%clk 0:02:48]}  Nxd5 {[%clk 0:02:42]} 13. Nxd5 {[%clk 0:02:45]}  exd5 {[%clk 0:02:42]} 14. Bb3 {[%clk 0:02:45]}  Qa5+ {[%clk 0:02:37]} 15. Kf1 {[%clk 0:02:40]}  Nb4 {[%clk 0:02:26]} 16. Qc3 {[%clk 0:02:20]}  Be6 {[%clk 0:02:16]} 17. Rh4 {[%clk 0:02:17]}  Rac8 {[%clk 0:02:15]} 18. Qxb4 {[%clk 0:02:15]}  Qd8 {[%clk 0:02:06]} 19. Rh1 {[%clk 0:02:01]}  b5 {[%clk 0:02:00]} 20. Qd2 {[%clk 0:01:54]}  Qf6 {[%clk 0:01:50]} 21. Qd4 {[%clk 0:01:48]}  Qe7 {[%clk 0:01:37]} 22. g3 {[%clk 0:01:39]}  a5 {[%clk 0:01:37]} 23. a3 {[%clk 0:01:35]}  a4 {[%clk 0:01:36]} 24. Ba2 {[%clk 0:01:35]}  Rc2 {[%clk 0:01:35]} 25. Bb1 {[%clk 0:01:28]}  Rc4 {[%clk 0:01:32]} 26. Qd3 {[%clk 0:01:26]}  f5 {[%clk 0:01:32]} 27. Kg2 {[%clk 0:01:23]}  Qf6 {[%clk 0:01:24]} 28. Re1 {[%clk 0:01:18]}  Re4 {[%clk 0:01:21]} 29. Ba2 {[%clk 0:01:12]}  Rd8 {[%clk 0:01:15]} 30. Nd4 {[%clk 0:00:54]}  Rxd4 {[%clk 0:01:13]} 31. Qxb5 {[%clk 0:00:41]}  Rd2 {[%clk 0:01:09]} 32. Rad1 {[%clk 0:00:37]}  Rxb2 {[%clk 0:01:05]} 33. Qa5 {[%clk 0:00:25]}  Kh7 {[%clk 0:00:54]} 34. Rxe6 {[%clk 0:00:22]}  Qxe6 {[%clk 0:00:53]} 35. Qxd8 {[%clk 0:00:18]}  Qe4+ {[%clk 0:00:53]} 36. Kh2 {[%clk 0:00:17]}  Rxf2+ {[%clk 0:00:51]} 37. Kh3 {[%clk 0:00:14]}  Qg4# {[%clk 0:00:50]} 0-1


[Site "https://www.chess.com"]

[Event "Titled Tuesday Blitz May 16 Early 2023"]
[White "Sanchez, Robert"]
[Black "Clawitter, Craig"]
[WhiteFideId "2034360"]
[BlackFideId "2023105"]
[WhiteElo "1871"]
[BlackElo "2271"]
[Result "0-1"]
[Round "08"]
[TimeControl "180+2"]
[Date "2023.05.16"]
[WhiteClock "0:01:25"]
[BlackClock "0:00:26"]

1. e4 {[%clk 0:03:00]}  e6 {[%clk 0:03:00]} 2. d4 {[%clk 0:03:00]}  d5 {[%clk 0:03:00]} 3. Nc3 {[%clk 0:03:00]}  Bb4 {[%clk 0:03:00]} 4. e5 {[%clk 0:02:57]}  c5 {[%clk 0:03:00]} 5. Bd2 {[%clk 0:02:45]}  Nh6 {[%clk 0:02:59]} 6. Nf3 {[%clk 0:02:43]}  Nf5 {[%clk 0:02:48]} 7. dxc5 {[%clk 0:02:42]}  O-O {[%clk 0:02:41]} 8. Bd3 {[%clk 0:02:42]}  Nh4 {[%clk 0:02:18]} 9. O-O {[%clk 0:02:34]}  Nd7 {[%clk 0:02:09]} 10. Bxh7+ {[%clk 0:02:11]}  Kxh7 {[%clk 0:02:04]} 11. Ng5+ {[%clk 0:02:11]}  Kg6 {[%clk 0:01:13]} 12. Qg4 {[%clk 0:01:54]}  Nxe5 {[%clk 0:01:12]} 13. Qxb4 {[%clk 0:01:49]}  f6 {[%clk 0:00:53]} 14. f4 {[%clk 0:01:40]}  Nc4 {[%clk 0:00:42]} 15. Nge4 {[%clk 0:01:30]}  dxe4 {[%clk 0:00:32]} 16. Qxc4 {[%clk 0:01:29]}  Qxd2 {[%clk 0:00:31]} 17. Qxe4+ {[%clk 0:01:27]}  f5 {[%clk 0:00:26]} 18. Qxf5+ {[%clk 0:01:25]} 0-1


[Site "https://www.chess.com"]

[Event "Titled Tuesday Blitz May 16 Early 2023"]
[White "Ciuffoletti, Paolo"]
[Black "littlepillow2010"]
[WhiteFideId "807630"]
[WhiteElo "2143"]
[BlackElo "2314"]
[Result "0-1"]
[Round "08"]
[TimeControl "180+2"]
[Date "2023.05.16"]
[WhiteClock "0:00:01"]
[BlackClock "0:00:06"]

1. e4 {[%clk 0:03:00]}  c5 {[%clk 0:02:57]} 2. d4 {[%clk 0:03:00]}  cxd4 {[%clk 0:02:57]} 3. c3 {[%clk 0:03:00]}  Nf6 {[%clk 0:02:55]} 4. e5 {[%clk 0:03:00]}  Nd5 {[%clk 0:02:56]} 5. Qxd4 {[%clk 0:03:01]}  e6 {[%clk 0:02:56]} 6. Bc4 {[%clk 0:03:01]}  Nc6 {[%clk 0:02:56]} 7. Qe4 {[%clk 0:03:01]}  Nb6 {[%clk 0:02:55]} 8. Bb3 {[%clk 0:03:01]}  d5 {[%clk 0:02:55]} 9. exd6 {[%clk 0:03:01]}  Bxd6 {[%clk 0:02:56]} 10. Nf3 {[%clk 0:03:02]}  Bd7 {[%clk 0:02:55]} 11. O-O {[%clk 0:02:57]}  Qc7 {[%clk 0:02:55]} 12. a4 {[%clk 0:02:42]}  Ne7 {[%clk 0:02:46]} 13. a5 {[%clk 0:02:19]}  Nbd5 {[%clk 0:02:33]} 14. Na3 {[%clk 0:02:09]}  Bc6 {[%clk 0:02:26]} 15. Qg4 {[%clk 0:01:47]}  h5 {[%clk 0:02:02]} 16. Qxg7 {[%clk 0:01:25]}  Rg8 {[%clk 0:01:53]} 17. Qh7 {[%clk 0:01:07]}  Nxc3 {[%clk 0:01:31]} 18. bxc3 {[%clk 0:00:36]}  Bxf3 {[%clk 0:01:25]} 19. Ba4+ {[%clk 0:00:26]}  Kd8 {[%clk 0:00:41]} 20. g3 {[%clk 0:00:25]}  Bxg3 {[%clk 0:00:34]} 21. Qxg8+ {[%clk 0:00:26]}  Nxg8 {[%clk 0:00:33]} 22. hxg3 {[%clk 0:00:25]}  Ke7 {[%clk 0:00:15]} 23. Nb5 {[%clk 0:00:23]}  Qc4 {[%clk 0:00:14]} 24. Ba3+ {[%clk 0:00:22]}  Kf6 {[%clk 0:00:12]} 25. Bd6 {[%clk 0:00:20]}  Ne7 {[%clk 0:00:09]} 26. Rfe1 {[%clk 0:00:19]}  Nf5 {[%clk 0:00:08]} 27. Be5+ {[%clk 0:00:18]}  Kg6 {[%clk 0:00:08]} 28. Nd6 {[%clk 0:00:14]}  Nxd6 {[%clk 0:00:06]} 29. Bxd6 {[%clk 0:00:14]}  h4 {[%clk 0:00:06]} 30. Bc2+ {[%clk 0:00:14]}  Kg7 {[%clk 0:00:04]} 31. Be5+ {[%clk 0:00:13]}  Kg8 {[%clk 0:00:05]} 32. Bf4 {[%clk 0:00:12]}  hxg3 {[%clk 0:00:04]} 33. Bxg3 {[%clk 0:00:12]}  Qg4 {[%clk 0:00:03]} 34. Re3 {[%clk 0:00:12]}  Kg7 {[%clk 0:00:03]} 35. Rae1 {[%clk 0:00:11]}  Rh8 {[%clk 0:00:03]} 36. Rxf3 {[%clk 0:00:08]}  Qxf3 {[%clk 0:00:04]} 37. Bh2 {[%clk 0:00:08]}  Qg4+ {[%clk 0:00:03]} 38. Bg3 {[%clk 0:00:08]}  Kf8 {[%clk 0:00:03]} 39. Be4 {[%clk 0:00:08]}  Rh3 {[%clk 0:00:03]} 40. Bg2 {[%clk 0:00:07]}  Rh5 {[%clk 0:00:03]} 41. Re3 {[%clk 0:00:07]}  Rc5 {[%clk 0:00:03]} 42. Rd3 {[%clk 0:00:07]}  Rc8 {[%clk 0:00:02]} 43. Bd6+ {[%clk 0:00:07]}  Ke8 {[%clk 0:00:03]} 44. Rg3 {[%clk 0:00:07]}  Qd1+ {[%clk 0:00:02]} 45. Kh2 {[%clk 0:00:06]}  Qxd6 {[%clk 0:00:03]} 46. Kg1 {[%clk 0:00:04]}  Qxg3 {[%clk 0:00:03]} 47. fxg3 {[%clk 0:00:04]}  Rxc3 {[%clk 0:00:04]} 48. Bxb7 {[%clk 0:00:04]}  Rxg3+ {[%clk 0:00:04]} 49. Kf2 {[%clk 0:00:04]}  Ra3 {[%clk 0:00:05]} 50. a6 {[%clk 0:00:01]}  Ke7 {[%clk 0:00:06]} 0-1


[Site "https://www.chess.com"]

[Event "Titled Tuesday Blitz May 16 Early 2023"]
[White "lluiss"]
[Black "Kriti Mayur Patel"]
[BlackFideId "35061780"]
[WhiteElo "2276"]
[BlackElo "1306"]
[Result "1-0"]
[Round "08"]
[TimeControl "180+2"]
[Date "2023.05.16"]
[WhiteClock "0:01:04"]
[BlackClock "0:01:40"]

1. Nf3 {[%clk 0:03:00]}  b6 {[%clk 0:03:00]} 2. e4 {[%clk 0:02:59]}  Bb7 {[%clk 0:03:01]} 3. Nc3 {[%clk 0:02:58]}  g6 {[%clk 0:03:01]} 4. d4 {[%clk 0:02:57]}  Bg7 {[%clk 0:03:02]} 5. Bd3 {[%clk 0:02:54]}  e6 {[%clk 0:03:02]} 6. O-O {[%clk 0:02:54]}  Ne7 {[%clk 0:03:03]} 7. Be3 {[%clk 0:02:53]}  O-O {[%clk 0:03:04]} 8. Qd2 {[%clk 0:02:54]}  f5 {[%clk 0:03:04]} 9. Bh6 {[%clk 0:02:50]}  fxe4 {[%clk 0:03:01]} 10. Nxe4 {[%clk 0:02:48]}  Nf5 {[%clk 0:03:01]} 11. Bxg7 {[%clk 0:02:47]}  Kxg7 {[%clk 0:03:01]} 12. c3 {[%clk 0:02:45]}  d6 {[%clk 0:02:57]} 13. Rae1 {[%clk 0:02:44]}  Nd7 {[%clk 0:02:57]} 14. Neg5 {[%clk 0:02:32]}  Qf6 {[%clk 0:02:42]} 15. Rxe6 {[%clk 0:02:27]}  Qd8 {[%clk 0:02:40]} 16. Rxd6 {[%clk 0:02:20]}  Nxd6 {[%clk 0:02:34]} 17. Ne6+ {[%clk 0:02:19]}  Kg8 {[%clk 0:02:32]} 18. Nxd8 {[%clk 0:02:19]}  Raxd8 {[%clk 0:02:33]} 19. Ng5 {[%clk 0:02:12]}  Nf6 {[%clk 0:02:31]} 20. Ne6 {[%clk 0:02:07]}  Kf7 {[%clk 0:02:17]} 21. Nxd8+ {[%clk 0:02:05]}  Rxd8 {[%clk 0:02:18]} 22. Bc2 {[%clk 0:02:03]}  Nde4 {[%clk 0:02:17]} 23. Qf4 {[%clk 0:01:57]}  Nd6 {[%clk 0:02:11]} 24. Re1 {[%clk 0:01:52]}  Kg7 {[%clk 0:02:06]} 25. f3 {[%clk 0:01:51]}  Nh5 {[%clk 0:02:05]} 26. Qe5+ {[%clk 0:01:50]}  Kh6 {[%clk 0:02:04]} 27. Kf2 {[%clk 0:01:35]}  Rf8 {[%clk 0:02:01]} 28. Qe7 {[%clk 0:01:25]}  Rf7 {[%clk 0:02:00]} 29. Qh4 {[%clk 0:01:24]}  Kg7 {[%clk 0:01:59]} 30. Re7 {[%clk 0:01:23]}  Nf6 {[%clk 0:01:56]} 31. Rxf7+ {[%clk 0:01:23]}  Kxf7 {[%clk 0:01:57]} 32. Qf4 {[%clk 0:01:22]}  Ke6 {[%clk 0:01:56]} 33. g4 {[%clk 0:01:19]}  Nd5 {[%clk 0:01:55]} 34. Qh6 {[%clk 0:01:17]}  Nf6 {[%clk 0:01:50]} 35. Bb3+ {[%clk 0:01:17]}  Ke7 {[%clk 0:01:43]} 36. Qg7+ {[%clk 0:01:15]}  Kd8 {[%clk 0:01:38]} 37. Qxf6+ {[%clk 0:01:15]}  Kc8 {[%clk 0:01:38]} 38. Qh8+ {[%clk 0:01:13]}  Kd7 {[%clk 0:01:39]} 39. Qxh7+ {[%clk 0:01:14]}  Kc6 {[%clk 0:01:40]} 40. Qxg6 {[%clk 0:01:13]}  Kb5 {[%clk 0:01:40]} 41. h4 {[%clk 0:01:12]}  c5 {[%clk 0:01:41]} 42. h5 {[%clk 0:01:11]}  c4 {[%clk 0:01:41]} 43. Bc2 {[%clk 0:01:10]}  a5 {[%clk 0:01:37]} 44. h6 {[%clk 0:01:09]}  a4 {[%clk 0:01:37]} 45. a3 {[%clk 0:01:09]}  Ka5 {[%clk 0:01:37]} 46. h7 {[%clk 0:01:09]}  b5 {[%clk 0:01:38]} 47. Qxd6 {[%clk 0:01:07]}  b4 {[%clk 0:01:39]} 48. Qxb4+ {[%clk 0:01:06]}  Ka6 {[%clk 0:01:39]} 49. Qxb7+ {[%clk 0:01:07]}  Ka5 {[%clk 0:01:38]} 50. Qb4+ {[%clk 0:01:05]}  Ka6 {[%clk 0:01:38]} 51. h8=Q {[%clk 0:01:04]}  Ka7 {[%clk 0:01:39]} 52. Qg7+ {[%clk 0:01:04]}  Ka6 {[%clk 0:01:40]} 53. Qd6+ {[%clk 0:01:03]}  Kb5 {[%clk 0:01:40]} 54. Qge5# {[%clk 0:01:04]} 1-0


[Site "https://www.chess.com"]

[Event "Titled Tuesday Blitz May 16 Early 2023"]
[White "rionelG"]
[Black "Lohani, Sujana"]
[BlackFideId "12311987"]
[WhiteElo "2218"]
[BlackElo "1718"]
[Result "1-0"]
[Round "08"]
[TimeControl "180+2"]
[Date "2023.05.16"]
[WhiteClock "0:01:20"]
[BlackClock "0:00:07"]

1. e4 {[%clk 0:03:00]}  g6 {[%clk 0:02:59]} 2. d4 {[%clk 0:03:00]}  Bg7 {[%clk 0:03:00]} 3. Nc3 {[%clk 0:03:01]}  d6 {[%clk 0:03:01]} 4. Bg5 {[%clk 0:03:00]}  c6 {[%clk 0:02:58]} 5. Qd2 {[%clk 0:02:59]}  b5 {[%clk 0:02:56]} 6. O-O-O {[%clk 0:02:59]}  b4 {[%clk 0:02:54]} 7. Nce2 {[%clk 0:02:59]}  Qa5 {[%clk 0:02:54]} 8. Kb1 {[%clk 0:02:58]}  Be6 {[%clk 0:02:51]} 9. Nc1 {[%clk 0:02:58]}  h6 {[%clk 0:02:44]} 10. Bf4 {[%clk 0:02:54]}  Nf6 {[%clk 0:02:43]} 11. f3 {[%clk 0:02:52]}  Na6 {[%clk 0:02:27]} 12. h4 {[%clk 0:02:44]}  h5 {[%clk 0:02:25]} 13. Nh3 {[%clk 0:02:37]}  Rb8 {[%clk 0:02:18]} 14. Ng5 {[%clk 0:02:35]}  Bd7 {[%clk 0:02:12]} 15. Bc4 {[%clk 0:02:29]}  O-O {[%clk 0:02:09]} 16. e5 {[%clk 0:02:15]}  dxe5 {[%clk 0:02:05]} 17. dxe5 {[%clk 0:02:14]}  Nd5 {[%clk 0:02:05]} 18. Bxd5 {[%clk 0:02:04]}  cxd5 {[%clk 0:02:02]} 19. e6 {[%clk 0:01:50]}  Bxe6 {[%clk 0:01:57]} 20. Bxb8 {[%clk 0:01:49]}  Rxb8 {[%clk 0:01:49]} 21. Nxe6 {[%clk 0:01:49]}  fxe6 {[%clk 0:01:48]} 22. g4 {[%clk 0:01:42]}  Qa3 {[%clk 0:01:35]} 23. bxa3 {[%clk 0:01:38]}  bxa3+ {[%clk 0:01:28]} 24. Nb3 {[%clk 0:01:38]}  Nc5 {[%clk 0:01:09]} 25. Qa5 {[%clk 0:01:23]}  Nd7 {[%clk 0:00:07]} 26. Qxa7 {[%clk 0:01:20]} 1-0


[Site "https://www.chess.com"]

[Event "Titled Tuesday Blitz May 16 Early 2023"]
[White "NtcPou"]
[Black "Benaddi, Mouhcine"]
[BlackFideId "9001050"]
[WhiteElo "2022"]
[BlackElo "2036"]
[Result "0-1"]
[Round "08"]
[TimeControl "180+2"]
[Date "2023.05.16"]
[WhiteClock "0:00:00"]
[BlackClock "0:00:29"]

1. e4 {[%clk 0:02:54]}  Nf6 {[%clk 0:02:58]} 2. e5 {[%clk 0:02:54]}  Nd5 {[%clk 0:02:58]} 3. d4 {[%clk 0:02:54]}  d6 {[%clk 0:02:57]} 4. Nf3 {[%clk 0:02:54]}  Bg4 {[%clk 0:02:55]} 5. c4 {[%clk 0:02:54]}  Nb6 {[%clk 0:02:54]} 6. Be2 {[%clk 0:02:54]}  e6 {[%clk 0:02:49]} 7. exd6 {[%clk 0:02:49]}  cxd6 {[%clk 0:02:46]} 8. Nc3 {[%clk 0:02:48]}  Nc6 {[%clk 0:02:45]} 9. b3 {[%clk 0:02:36]}  Be7 {[%clk 0:02:34]} 10. h3 {[%clk 0:02:26]}  Bf5 {[%clk 0:02:32]} 11. a3 {[%clk 0:02:09]}  O-O {[%clk 0:02:31]} 12. O-O {[%clk 0:02:04]}  e5 {[%clk 0:02:26]} 13. d5 {[%clk 0:02:00]}  Nb8 {[%clk 0:02:15]} 14. Bd3 {[%clk 0:01:58]}  Bxd3 {[%clk 0:02:01]} 15. Qxd3 {[%clk 0:01:59]}  N8d7 {[%clk 0:02:00]} 16. b4 {[%clk 0:01:58]}  Rc8 {[%clk 0:01:57]} 17. Nd2 {[%clk 0:01:55]}  Qc7 {[%clk 0:01:43]} 18. Nb5 {[%clk 0:01:51]}  Qb8 {[%clk 0:01:43]} 19. a4 {[%clk 0:01:39]}  a6 {[%clk 0:01:42]} 20. Nc3 {[%clk 0:00:40]}  Qc7 {[%clk 0:01:40]} 21. Nce4 {[%clk 0:00:16]}  Nxc4 {[%clk 0:01:38]} 22. Ba3 {[%clk 0:00:10]}  Nxd2 {[%clk 0:01:25]} 23. Nxd2 {[%clk 0:00:09]}  Qc2 {[%clk 0:01:20]} 24. Qe2 {[%clk 0:00:10]}  Qxa4 {[%clk 0:01:14]} 25. Ne4 {[%clk 0:00:06]}  f5 {[%clk 0:01:03]} 26. Nd2 {[%clk 0:00:06]}  Rc2 {[%clk 0:01:00]} 27. Rfc1 {[%clk 0:00:05]}  Rfc8 {[%clk 0:00:56]} 28. Rxc2 {[%clk 0:00:04]}  Rxc2 {[%clk 0:00:55]} 29. Qd3 {[%clk 0:00:03]}  e4 {[%clk 0:00:45]} 30. Qe3 {[%clk 0:00:03]}  Bf6 {[%clk 0:00:40]} 31. Bb2 {[%clk 0:00:01]}  Qxa1+ {[%clk 0:00:33]} 32. Bxa1 {[%clk 0:00:02]}  Rc1+ {[%clk 0:00:29]} 33. Kh2 {[%clk 0:00:00]}  Rxa1 {[%clk 0:00:29]} 0-1


[Site "https://www.chess.com"]

[Event "Titled Tuesday Blitz May 16 Early 2023"]
[White "Maghsoodloo, Parham"]
[Black "Le, Tuan Minh"]
[WhiteFideId "12539929"]
[BlackFideId "12401153"]
[WhiteElo "2655"]
[BlackElo "2566"]
[Result "1-0"]
[Round "09"]
[TimeControl "180+2"]
[Date "2023.05.16"]
[WhiteClock "0:00:36"]
[BlackClock "0:00:13"]

1. d4 {[%clk 0:03:00]}  d5 {[%clk 0:03:00]} 2. c4 {[%clk 0:03:00]}  c6 {[%clk 0:03:00]} 3. Nf3 {[%clk 0:02:59]}  Nf6 {[%clk 0:03:00]} 4. e3 {[%clk 0:02:59]}  Bf5 {[%clk 0:02:59]} 5. Nc3 {[%clk 0:02:56]}  e6 {[%clk 0:02:59]} 6. Nh4 {[%clk 0:02:56]}  Be4 {[%clk 0:02:59]} 7. f3 {[%clk 0:02:54]}  Bg6 {[%clk 0:02:59]} 8. Qb3 {[%clk 0:02:53]}  Qc7 {[%clk 0:02:58]} 9. Bd2 {[%clk 0:02:53]}  Be7 {[%clk 0:02:58]} 10. Rc1 {[%clk 0:02:41]}  Nbd7 {[%clk 0:02:47]} 11. cxd5 {[%clk 0:02:36]}  exd5 {[%clk 0:02:47]} 12. Nxg6 {[%clk 0:02:33]}  hxg6 {[%clk 0:02:48]} 13. g3 {[%clk 0:02:18]}  Nb6 {[%clk 0:02:33]} 14. Kf2 {[%clk 0:02:17]}  Qd7 {[%clk 0:02:24]} 15. Bd3 {[%clk 0:02:06]}  Bd6 {[%clk 0:01:58]} 16. h4 {[%clk 0:02:02]}  O-O {[%clk 0:01:48]} 17. Ne2 {[%clk 0:02:02]}  Rae8 {[%clk 0:01:46]} 18. g4 {[%clk 0:02:00]}  Re7 {[%clk 0:01:28]} 19. Qc2 {[%clk 0:01:48]}  Rfe8 {[%clk 0:01:27]} 20. b3 {[%clk 0:01:46]}  Nc8 {[%clk 0:01:19]} 21. Rcg1 {[%clk 0:01:45]}  Ne4+ {[%clk 0:00:51]} 22. Bxe4 {[%clk 0:01:44]}  dxe4 {[%clk 0:00:52]} 23. f4 {[%clk 0:01:45]}  Nb6 {[%clk 0:00:47]} 24. h5 {[%clk 0:01:42]}  Nd5 {[%clk 0:00:43]} 25. hxg6 {[%clk 0:01:42]}  fxg6 {[%clk 0:00:44]} 26. Nc3 {[%clk 0:01:42]}  Bxf4 {[%clk 0:00:41]} 27. Nxd5 {[%clk 0:01:36]}  cxd5 {[%clk 0:00:40]} 28. exf4 {[%clk 0:01:27]}  e3+ {[%clk 0:00:41]} 29. Bxe3 {[%clk 0:01:24]}  Rxe3 {[%clk 0:00:41]} 30. Qxg6 {[%clk 0:01:25]}  Re2+ {[%clk 0:00:42]} 31. Kg3 {[%clk 0:01:24]}  R8e3+ {[%clk 0:00:38]} 32. Kh4 {[%clk 0:01:24]}  Re6 {[%clk 0:00:38]} 33. Qf5 {[%clk 0:00:58]}  Rh6+ {[%clk 0:00:37]} 34. Kg3 {[%clk 0:00:58]}  Qxf5 {[%clk 0:00:18]} 35. gxf5 {[%clk 0:00:57]}  Rxh1 {[%clk 0:00:19]} 36. Rxh1 {[%clk 0:00:58]}  Rxa2 {[%clk 0:00:19]} 37. Rc1 {[%clk 0:00:57]}  Rb2 {[%clk 0:00:13]} 38. Rc8+ {[%clk 0:00:44]}  Kh7 {[%clk 0:00:13]} 39. Rc3 {[%clk 0:00:39]}  a5 {[%clk 0:00:13]} 40. Kg4 {[%clk 0:00:37]}  Kh6 {[%clk 0:00:13]} 41. Rh3# {[%clk 0:00:36]} 1-0


[Site "https://www.chess.com"]